Cogmind - Beta 17 @@@ ROGUE MODE // 2026.07.31 @ 13:25:54 Player: OBLIQUE Result: Destroyed by S-43 Plague with Heavy Machine Gun Performance ------------- Evolutions (7) 3500 Regions Visited (25) 5000 Robots Destroyed (168) 840 Value Destroyed (8816) 8816 Prototype IDs (90) 1800 Alien Tech Used (2) 400 Bonus (10319) 10319 TOTAL SCORE: 30675 Bonus ------- High Alert Combat Kills 478 Follower Combat Kills 2618 Aligned with FarCom 300 Met Data Miner 300 Met Zhirov 300 Met Warlord at Base 500 MAIN.C Attacked Warlord 500 Warlord Defense Kills 4976 Built Enhanced Grunts 300 A7 Reached Mainframe 300 Friendly Fire -253 Cogmind --------- Core Integrity 0/1300 Matter 299/300 Energy 98/100 System Corruption 0% Temperature Cool (0) Movement Core (50) Location -3/Research Parts ------- > --- POWER (2) -------- (None) > --- PROPULSION (4) --- (None) > --- UTILITY (12) ----- Advanced Terrain Scan Processor Advanced Corruption Screen > --- WEAPON (3) ------- (None) > --- INVENTORY (5) ---- Light Antimatter Reactor Advanced Trap Scanner Advanced Trap Scanner Heavy Machine Gun Improved Plasma Cutter Peak State ------------ > --- POWER ------------ Vortex Chain Reactor > --- PROPULSION ------- Heavy Siege Treads Armored Heavy Treads > --- UTILITY ---------- Advanced Cooling System High-capacity Storage Unit Advanced Energy Well Advanced Trap Scanner Machine Analyzer Spectral Analyzer Advanced Terrain Scanner Advanced Terrain Scan Processor Weapon Cycler Centrium Light Armor Plating Thermal Barrier Advanced Corruption Screen > --- WEAPON ----------- RU-N14's Throwing Claymores v3 Molecular Deconstructor > --- INVENTORY -------- Heavy Antimatter Reactor Advanced Treads Centrium Heavy Treads Advanced Trap Scanner Experimental Phase Shifter Improved Core Shielding Layered Heavy Armor Plating Improved Shock Absorption System Improved Remote Shield Improved Arc Projector Vortex Rail Compact HERF Cannon Neutron Cannon Improved Plasma Cutter [Rating: 162] Favorites ----------- Power Heavy Antimatter Reactor Engine Reinforced Deuterium Engine Power Core Nuclear Core Reactor Heavy Antimatter Reactor Propulsion Armored Wheel Treads Centrium Heavy Treads Leg Enhanced Biometal Leg Wheel Armored Wheel Flight Unit Cooled Nuclear Pulse Thruster Utility High-capacity Storage Unit Device Advanced Heat Sink Storage High-capacity Storage Unit Processor Machine Analyzer Hackware Makeshift System Shield Protection Centrium Medium Armor Plating Weapon KE Penetrator Energy Gun Wave Gun Energy Cannon Neutron Cannon Ballistic Gun KE Penetrator Ballistic Cannon Light Antimatter Cannon Launcher Shock Bomb Launcher Special Weapon Molecular Deconstructor Build | -11 -10 -10 -10 -9 -8 -7 -7 -7 -7 -6 -6 -6 -6 -6 -5 -5 -5 -5 -4 -4 -4 -4 -4 -3 -3 ------- Run | Yrd Mat Min Exi Min Mat Fac Low Low Dat Pro Fac Ext Cet Arc Fac Upp Upp Zhi Pro Fac Upp Upp War Pro Res Slots Evolved 14 | . . . . . 4 2 . . . . 2 . . . 2 . . . . 2 . . . . 2 Power 1 | . . . . . . . . . . . . . . . . . . . . . . . . . 1 Propulsion 2 | . . . . . 1 . . . . . . . . . 1 . . . . . . . . . . Utility 10 | . . . . . 3 2 . . . . 1 . . . 1 . . . . 2 . . . . 1 Weapon 1 | . . . . . . . . . . . 1 . . . . . . . . . . . . . . Parts Attached 147 | 6 12 . 1 . 17 13 4 5 . . 6 15 5 4 4 . 3 5 6 6 4 2 15 3 11 Power 10 | 1 1 . . . 2 2 . . . . . 2 . . . . . 1 . . . . . . 1 Engine 6 | 1 1 . . . 1 1 . . . . . 2 . . . . . . . . . . . . . Core 2 | . . . . . 1 1 . . . . . . . . . . . . . . . . . . . Reactor 2 | . . . . . . . . . . . . . . . . . . 1 . . . . . . 1 Propulsion 20 | 2 2 . . . 1 2 . 1 . . 1 . 2 . 2 . . 1 . 1 2 . 2 1 . Treads 8 | 2 . . . . . . . . . . . . 1 . 2 . . . . . 2 . . 1 . Leg 2 | . . . . . . . . . . . . . . . . . . . . . . . 2 . . Wheel 9 | . 2 . . . 1 2 . 1 . . 1 . 1 . . . . . . 1 . . . . . Hover . | . . . . . . . . . . . . . . . . . . . . . . . . . . Flight 1 | . . . . . . . . . . . . . . . . . . 1 . . . . . . . Utility 61 | 1 6 . 1 . 7 6 3 2 . . 3 5 1 . 2 . 1 3 3 4 . 2 6 2 3 Device 28 | . 2 . . . 2 2 1 1 . . 1 5 . . . . 1 1 3 3 . 2 3 1 . Storage 8 | 1 2 . 1 . 1 . 1 . . . 1 . . . . . . 1 . . . . . . . Processor 6 | . . . . . 2 1 . . . . . . . . 1 . . . . . . . 1 . 1 Hackware 6 | . . . . . . 2 . . . . 1 . . . . . . . . 1 . . 1 . 1 Protection 13 | . 2 . . . 2 1 1 1 . . . . 1 . 1 . . 1 . . . . 1 1 1 Artifact . | . . . . . . . . . . . . . . . . . . . . . . . . . . Weapon 56 | 2 3 . . . 7 3 1 2 . . 2 8 2 4 . . 2 . 3 1 2 . 7 . 7 Energy Gun 23 | 1 1 . . . 2 3 1 1 . . 1 3 1 2 . . . . 1 . 1 . 3 . 2 Energy Cannon 10 | . 2 . . . 4 . . . . . . . 1 . . . . . 1 . . . 1 . 1 Ballistic Gun 10 | 1 . . . . . . . 1 . . 1 1 . 1 . . 1 . 1 . . . . . 3 Ballistic Cannon 4 | . . . . . . . . . . . . 3 . . . . . . . 1 . . . . . Launcher 4 | . . . . . 1 . . . . . . 1 . . . . 1 . . . . . 1 . . Special Weapon 5 | . . . . . . . . . . . . . . 1 . . . . . . 1 . 2 . 1 Impact Weapon . | . . . . . . . . . . . . . . . . . . . . . . . . . . Slashing Weapon . | . . . . . . . . . . . . . . . . . . . . . . . . . . Piercing Weapon . | . . . . . . . . . . . . . . . . . . . . . . . . . . Special Melee Weapon . | . . . . . . . . . . . . . . . . . . . . . . . . . . Unidentified Prototypes 31 | . . . . . 2 4 . . . . . . 3 . . . . 6 2 1 1 . 11 . 1 Parts Lost 42 | . . . . . 2 . 2 6 . . 1 2 4 . . . 1 . . . 2 . 2 1 19 Power 2 | . . . . . . . . 1 . . . . . . . . . . . . . . . . 1 Propulsion 9 | . . . . . . . 1 2 . . 1 . 1 . . . . . . . 1 . . . 3 Utility 16 | . . . . . 1 . 1 1 . . . 1 1 . . . . . . . 1 . . 1 9 Weapon 15 | . . . . . 1 . . 2 . . . 1 2 . . . 1 . . . . . 2 . 6 Highest Loss Streak 18 | . . . . . 2 . 1 6 . . 1 1 4 . . . 1 . . . 2 . 2 1 18 To Critical Strikes 2 | . . . . . . . . . . . . 1 1 . . . . . . . . . . . . Average Backups 16 | 1 7 10 10 11 17 19 17 16 20 20 19 20 18 18 19 18 17 18 19 18 17 17 16 12 11 Power 1 | . 1 . . . 1 2 3 2 2 2 2 1 1 1 1 1 1 . . . . 1 . 1 1 Propulsion 2 | . . 2 2 2 1 5 5 4 4 4 4 4 3 4 2 1 1 2 2 1 1 1 1 1 1 Utility 6 | . 3 4 4 5 6 5 4 3 6 6 5 6 7 8 8 9 9 9 11 8 7 7 7 7 5 Weapon 5 | . 2 4 4 4 7 5 4 6 8 8 8 6 4 5 6 6 5 4 3 5 5 5 4 2 1 Tool/Special . | . . . . . . . . . . . . . . . . . . . . . . . . . . Unused Backups 44 | . 7 . . . 4 4 1 . . . 2 6 . . . . . 2 . 2 3 1 7 . 5 Power 6 | . 2 . . . . . . . . . . 1 . . . . . 1 . . . . 1 . 1 Propulsion 3 | . . . . . . 1 . . . . . 1 . . . . . . . . . . . . 1 Utility 15 | . 1 . . . 1 1 1 . . . 2 . . . . . . 1 . 1 1 1 3 . 2 Weapon 18 | . 4 . . . 3 2 . . . . . 4 . . . . . . . 1 2 . 2 . . Tool/Special 2 | . . . . . . . . . . . . . . . . . . . . . . . 1 . 1 Average Slot Usage (%) 91 | . 99 100 100 100 97 91 92 90 92 92 87 91 91 93 93 94 94 92 93 93 92 89 88 84 74 Engine 3 | . 14 14 14 14 6 . . . . . . 5 6 6 5 5 5 2 . . . . . . . Core 1 | . . . . . 2 6 7 6 7 7 6 . . . . . . . . . . . . . . Reactor 1 | . . . . . . . . . . . . . . . . . . 2 5 5 5 5 5 5 3 Treads 6 | . 21 . . . . . . . . . . . 4 6 11 17 17 16 17 9 11 10 9 10 7 Wheel 8 | . 6 28 28 28 25 15 15 14 15 15 7 13 7 6 5 . . . . 4 2 . . . . Device 18 | . 5 . . . 7 13 15 19 15 15 13 19 20 20 22 23 25 29 29 21 25 30 22 25 20 Storage 11 | . 14 14 14 14 9 15 15 15 15 15 13 13 13 13 11 11 8 5 5 9 10 10 10 10 8 Processor 11 | . . . . . 9 12 15 15 15 15 13 13 13 13 11 11 11 11 11 10 10 10 14 15 16 Hackware 1 | . . . . . . 3 . . . . 5 4 . . . . . . . 4 . . 3 . . Protection 6 | . 7 14 14 14 16 6 7 2 7 7 6 1 4 6 5 5 5 3 5 9 10 5 5 5 4 Energy Gun 5 | . 4 . . . 3 4 13 7 7 7 12 6 12 10 11 11 10 5 4 . . 5 7 . 1 Energy Cannon 5 | . 18 28 28 28 14 9 1 . . . . . . . . . . . . 5 5 5 2 5 5 Ballistic Gun 3 | . 4 . . . . . . 6 7 7 6 3 5 7 5 5 5 11 10 8 4 . . . . Ballistic Cannon 1 | . . . . . . . . . . . . 8 . . . . . . . 1 5 5 2 . . Peak Build Rating 162 | 6 14 14 14 14 32 46 50 50 50 50 62 70 80 85 95 94 94 103 107 126 139 138 155 148 162 Average Rating 82 | 4 10 14 13 14 30 43 46 47 50 50 56 64 76 82 92 94 93 93 100 121 127 135 148 141 140 On Entrance 69 | . 6 14 14 14 14 32 46 50 50 50 50 62 68 80 85 94 94 92 99 107 124 138 134 139 140 Avg Prop Armor Cover (%) 5 | . . . . . . . . . . . . . 13 12 12 . . . . 2 2 . . . 10 Naked Turns . | . . . . . . . . . . . . . . . . . . . . . . . . . . Heaviest Build 110 | 11 30 30 60 60 72 74 78 65 65 65 74 88 84 87 88 88 88 84 86 96 96 103 102 92 110 Greatest Support 150 | 40 40 24 24 24 36 40 40 40 40 40 44 44 44 16 124 124 124 124 124 102 150 150 150 150 130 Greatest Overweight (x) 6 | . 2 1 2 2 2 2 1 1 1 1 2 1 5 5 2 . . 3 . 4 . . 1 . 6 Average Overweight (x) . | . . 1 1 2 1 1 1 1 1 1 1 1 4 5 1 . . . . . . . . . . Largest Inventory Capacity 20 | 8 10 10 20 20 20 20 20 20 20 20 20 20 20 20 20 20 20 20 20 20 20 20 20 20 20 Average Capacity 18 | 7 9 10 13 20 20 20 20 20 20 20 20 20 20 20 20 20 20 20 20 20 20 20 20 20 18 Most Carried 20 | 2 10 10 11 11 20 20 20 20 20 20 20 20 20 20 20 19 19 20 20 20 20 20 20 18 17 Average Carried 17 | 1 7 10 10 11 17 19 18 16 20 20 19 19 18 19 19 19 18 19 19 19 19 19 19 15 13 Final Capacity 20 | 8 10 10 20 20 20 20 20 20 20 20 20 20 20 20 20 20 20 20 20 20 20 20 20 20 5 Final Carried 20 | 2 10 10 11 11 20 20 20 20 20 20 20 20 18 20 19 19 18 20 20 20 20 20 15 16 5 Class Distribution -------------------- 26% | Mutant 26% | Commander-Skirmisher 15% | Skirmisher 14% | Scavenger-Tank 7% | Hacker-Tank 6% | Scavenger-Skirmisher Dominant Class ---------------- Mutant | -10/Materials Mutant | -10/Mines Mutant | -10/Exiles Mutant | -9/Mines Mutant | -8/Materials Skirmisher | -7/Factory Skirmisher | -7/Lower Caves Mutant | -7/Lower Caves Mutant | -7/Data Miner Mutant | -6/Proximity Caves Skirmisher | -6/Factory Commander-Skirmisher | -6/Extension Commander-Skirmisher | -6/Cetus Commander-Skirmisher | -6/Archives Commander-Skirmisher | -5/Factory Commander-Skirmisher | -5/Upper Caves Commander-Skirmisher | -5/Upper Caves Commander-Skirmisher | -5/Zhirov Commander-Skirmisher | -4/Proximity Caves Commander-Skirmisher | -4/Factory Scavenger-Tank | -4/Upper Caves Scavenger-Tank | -4/Upper Caves Hacker-Tank | -4/Warlord Scavenger-Tank | -3/Proximity Caves Scavenger-Skirmisher | -3/Research Resources | -11 -10 -10 -10 -9 -8 -7 -7 -7 -7 -6 -6 -6 -6 -6 -5 -5 -5 -5 -4 -4 -4 -4 -4 -3 -3 ----------- Run | Yrd Mat Min Exi Min Mat Fac Low Low Dat Pro Fac Ext Cet Arc Fac Upp Upp Zhi Pro Fac Upp Upp War Pro Res Matter Collected 3317 | 262 137 . . . 180 160 50 63 . . 55 482 122 60 . 80 92 . 312 242 399 85 190 131 215 Remotely . | . . . . . . . . . . . . . . . . . . . . . . . . . . Salvage Created 6570 | 100 139 . . . 916 142 502 312 . . 82 858 187 . . 128 120 . 434 390 370 . 810 193 887 Parts 304 | 2 11 . . . 46 7 25 14 . . 8 45 7 . . 5 2 . 27 19 9 . 18 8 51 Haulers Intercepted 3 | . . . . . 2 . . . . . . . . . . . . . . 1 . . . . . Recyclers Shooed . | . . . . . . . . . . . . . . . . . . . . . . . . . . Parts Field Recycled . | . . . . . . . . . . . . . . . . . . . . . . . . . . Retrieved Matter . | . . . . . . . . . . . . . . . . . . . . . . . . . . Parts Self-Destructed 109 | . . . . . . . 17 18 . . . . . . . 5 6 . 35 . 15 5 . 8 . Prevented 13 | . . . . . . . 5 1 . . . . . . . 3 . . 1 . 3 . . . . Parts Restored . | . . . . . . . . . . . . . . . . . . . . . . . . . . Kills | -11 -10 -10 -10 -9 -8 -7 -7 -7 -7 -6 -6 -6 -6 -6 -5 -5 -5 -5 -4 -4 -4 -4 -4 -3 -3 ------- Run | Yrd Mat Min Exi Min Mat Fac Low Low Dat Pro Fac Ext Cet Arc Fac Upp Upp Zhi Pro Fac Upp Upp War Pro Res Combat Hostiles Destroyed 144 | . 5 . . . 14 1 9 8 . . 3 10 2 . . 2 2 . 9 5 8 . 38 6 22 Guns 54 | . 2 . . . 2 . 6 8 . . 3 8 . . . 2 2 . 9 2 5 . 2 . 3 Cannons 32 | . 2 . . . 8 1 2 . . . . 2 . . . . . . . 3 3 . . 4 7 AOE 50 | . 1 . . . 3 . 1 . . . . . . . . . . . . . . . 36 1 8 Classes Destroyed 20 | 1 2 . . . 7 . 2 . . . . 1 . . . 1 1 . . . 1 . 4 . . Worker 6 | . . . . . 1 1 . . . . . . . . . . . . . . . . . . 4 Builder 4 | . . . . . 1 . . . . . . . . . . . . . . . . . . . 3 Hauler 3 | . . . . . 2 . . . . . . . . . . . . . . 1 . . . . . Recycler 2 | 1 . . . . . . . . . . . 1 . . . . . . . . . . . . . Mechanic 2 | . . . . . . . . . . . . 1 . . . . . . . 1 . . . . . Watcher 6 | . . . . . 2 1 . . . . . 1 1 . . . . . . . . . . . 1 Swarmer 26 | . 3 . . . . . . 4 . . 3 . . . . . . . 4 . . . 5 3 4 Saboteur 3 | . . . . . . . . . . . . . . . . . . . . . . . 3 . . Grunt 55 | . 2 . . . 7 . 6 3 . . . 6 . . . . . . . 2 4 . 14 2 9 Brawler 5 | . . . . . 1 . . . . . . . . . . . . . . 1 . . 3 . . Duelist 6 | . . . . . . . 1 1 . . . . . . . . . . 1 . 1 . 2 . . Protector 2 | . . . . . . . . . . . . . . . . . . . . . . . 2 . . Sentry 14 | . . . . . 4 1 1 . . . . 3 . . . 1 1 . 1 . . . . 1 1 Specialist 2 | . . . . . 2 . . . . . . . . . . . . . . . . . . . . Hunter 9 | . . . . . . . . . . . . . . . . . 1 . 3 . 1 . 2 . 2 Programmer 10 | . . . . . . . . . . . . . . . . 1 . . . 2 . . 1 . 6 Behemoth 4 | . . . . . . . . . . . . . . . . . . . . . 1 . 3 . . Cetus Guard 2 | . . . . . . . . . . . . . 2 . . . . . . . . . . . . Striker 1 | . . . . . . . . . . . . . . . . . . . . . . . 1 . . Executioner 3 | . . . . . . . . . . . . . . . . . . . . . . . 3 . . Butcher 1 | . . . . . . . . . . . . 1 . . . . . . . . . . . . . Mutant 2 | . . . . . . . 1 . . . . . . . . . . . . . 1 . . . . Best Kill Streak 38 | 1 3 . . . 5 2 3 8 . . 3 3 3 . . 1 1 . 5 3 2 . 38 3 13 Combat Bots Only 38 | . 3 . . . 4 1 3 8 . . 3 3 2 . . 1 1 . 5 2 2 . 38 3 10 Max Kills in Single Turn 13 | 1 1 . . . 2 1 1 1 . . 1 2 1 . . 1 1 . 2 2 1 . 13 1 5 Gunslinging . | . . . . . . . . . . . . . . . . . . . . . . . . . . Exploded 13 | . 1 . . . 1 . 1 . . . . . . . . . . . . . . . 13 1 3 Melee . | . . . . . . . . . . . . . . . . . . . . . . . . . . Uniques/NPCs Destroyed . | . . . . . . . . . . . . . . . . . . . . . . . . . . Combat | -11 -10 -10 -10 -9 -8 -7 -7 -7 -7 -6 -6 -6 -6 -6 -5 -5 -5 -5 -4 -4 -4 -4 -4 -3 -3 -------- Run | Yrd Mat Min Exi Min Mat Fac Low Low Dat Pro Fac Ext Cet Arc Fac Upp Upp Zhi Pro Fac Upp Upp War Pro Res Hostile Shots Fired 1051 | . 21 . . . 55 18 61 104 . . 16 114 28 13 . 7 23 . 31 19 78 . 65 56 342 Missed 310 | . 6 . . . 11 7 14 26 . . 3 44 8 1 . . 5 . 11 7 23 . 11 16 117 Hits 741 | . 15 . . . 44 11 47 78 . . 13 70 20 12 . 7 18 . 20 12 55 . 54 40 225 Melee 4 | . . . . . . . 3 . . . . . . . . . . . . . . . . . 1 Projectile 737 | . 15 . . . 44 11 44 78 . . 13 70 20 12 . 7 18 . 20 12 55 . 54 40 224 AOE 3 | . . . . . . . . . . . . . . . . . . . . . . . 3 . . Critical Strikes 42 | . 2 . . . 3 . 1 . . . . 4 3 1 . 1 . . 1 1 4 . 2 1 18 Actively Blocked 3 | . . . . . . . . . . . . . . . . . . . . . . . . . 3 Part Disruptions 2 | . . . . . . . . . . . . . . . . . . . . . . . . . 2 Damage Taken 13889 | . 209 . . . 887 86 530 1066 . . 462 695 570 292 . 161 315 . 388 230 1406 27 1571 774 4220 Core 2499 | . 49 . . . 135 . 81 208 . . 159 71 . 20 . . . . 32 36 114 9 229 46 1310 Absorbed by Shields 357 | . . . . . . . . . . . . 286 62 . . . . . . . . 9 . . . Reduced by Siege Mode 138 | . . . . . . . . . . . . . . . . . . . . . . . 138 . . Redirected to Shielding 188 | . . . . . . . . . . . . . . . . . . . 18 21 72 . . . 77 Ignored by Resistances 988 | . . . . . . . 104 128 . . . . . . . . . . . . 62 . 148 131 415 Regen/Repaired (Parts) 785 | . . . . . 99 . . . . . . . . . . . . . . 637 . . 49 . . Core Remaining (%) 76 | 100 . . . 80 75 . . . . 58 . . . 70 . . . . 96 . . . . 57 . Volleys Fired 352 | 2 18 . . . 39 11 33 19 . . 10 31 8 4 1 5 9 . 19 15 31 . 24 26 47 Largest 3 | 2 2 . . . 2 2 2 2 . . 3 3 3 3 1 3 3 . 3 3 3 . 3 2 3 Hottest 249 | 60 112 . . . 138 138 110 110 . . 148 151 178 178 81 195 195 . 147 174 174 . 180 135 249 Shots Fired 795 | 4 32 . . . 68 22 64 31 . . 24 89 24 8 1 15 27 . 57 41 93 . 44 44 107 Gun 448 | 4 22 . . . 22 10 49 31 . . 24 60 18 8 1 15 25 . 57 15 31 . 23 6 27 Cannon 293 | . 10 . . . 46 12 15 . . . . 29 2 . . . . . . 26 62 . 8 26 57 Launcher 10 | . . . . . . . . . . . . . 4 . . . 2 . . . . . 4 . . Special 44 | . . . . . . . . . . . . . . . . . . . . . . . 9 12 23 Kinetic 229 | 2 11 . . . . . . 2 . . 7 48 8 4 . 5 9 . 38 27 62 . . . 6 Thermal 274 | . 2 . . . 22 10 31 19 . . 10 19 10 4 1 10 16 . 11 14 31 . 8 26 30 Explosive 16 | . . . . . . . . . . . . . . . . . 2 . . . . . 9 . 5 Electromagnetic 211 | 2 19 . . . 46 12 33 10 . . 7 22 6 . . . . . 8 . . . . . 46 Entropic 35 | . . . . . . . . . . . . . . . . . . . . . . . 27 6 2 Robot Hit Streak 23 | 2 8 . . . 8 8 6 10 . . 2 23 8 4 . 4 10 . 12 7 17 . 10 10 14 Robot Miss Streak 8 | 1 2 . . . 1 3 2 2 . . 5 5 1 3 . 1 2 . 4 2 4 . 2 2 8 Penetration Max 1 | . . . . . . . . . . . 1 1 . . . . . . 1 1 1 . . . . Secondary Targets 11 | . . . . . . . . 1 . . 3 1 . . . . 1 . 3 . . . 1 . 1 Max Gunslinging Chain 1 | . . . . . . . . 1 . . 1 1 . . . . 1 . 1 . . . 1 . 1 Shots Hit Robots 525 | 3 20 . . . 50 14 41 22 . . 6 60 20 7 . 9 20 . 41 27 59 . 35 24 67 Core Hits 306 | 2 9 . . . 22 4 19 12 . . 4 32 8 7 . 4 7 . 17 11 22 . 71 6 49 Critical Kills 4 | . . . . . . . . . . . . 3 . . . . . . 1 . . . . . . Critical Parts Destroyed 20 | . . . . . . . . . . . . 10 . . . 1 1 . . . 2 . 4 1 1 Critical Strikes 48 | . . . . . 5 . 2 1 . . 1 14 1 1 . 2 2 . 2 1 4 . 7 1 4 Burn 13 | . . . . . 4 . 2 . . . 1 1 1 1 . 1 1 . 1 . . . . . . Destroy 18 | . . . . . . . . . . . . 13 . . . 1 1 . 1 . 2 . . . . Blast 3 | . . . . . . . . . . . . . . . . . . . . 1 2 . . . . Corrupt 4 | . . . . . 1 . . 1 . . . . . . . . . . . . . . . . 2 Sever 4 | . . . . . . . . . . . . . . . . . . . . . . . 3 . 1 Detonate 6 | . . . . . . . . . . . . . . . . . . . . . . . 4 1 1 Melee Attacks . | . . . . . . . . . . . . . . . . . . . . . . . . . . Impact . | . . . . . . . . . . . . . . . . . . . . . . . . . . Slashing . | . . . . . . . . . . . . . . . . . . . . . . . . . . Piercing . | . . . . . . . . . . . . . . . . . . . . . . . . . . Sneak Attacks . | . . . . . . . . . . . . . . . . . . . . . . . . . . Combat Hostiles . | . . . . . . . . . . . . . . . . . . . . . . . . . . Follow-up Attacks . | . . . . . . . . . . . . . . . . . . . . . . . . . . Damage Inflicted 28714 | 35 290 . . . 1842 335 967 771 . . 138 1701 654 144 . 245 557 . 916 1054 2448 . 11094 839 4684 Guns 7347 | 35 172 . . . 236 103 640 668 . . 138 1127 287 144 . 245 421 . 916 398 612 . 805 77 323 Cannons 6603 | . 92 . . . 1015 232 222 . . . . 574 52 . . . . . . 656 1512 . 278 676 1294 Explosions 14047 | . 23 . . . 591 . 105 103 . . . . 315 . . . 136 . . . 324 . 9557 86 2807 Melee . | . . . . . . . . . . . . . . . . . . . . . . . . . . Ramming 90 | . 3 . . . . . . . . . . . . . . . . . . . . . . . 87 Kinetic 4062 | 7 65 . . . . . . 22 . . 53 952 154 77 . 81 144 . 658 689 1113 . . . 47 Thermal 7675 | . 34 . . . 444 103 552 629 . . 38 602 133 67 . 164 277 . 212 365 1335 . 858 762 1100 Explosive 8081 | . . . . . 383 . . . . . . . . . . . 136 . . . . . 5092 . 2470 Electromagnetic 3320 | 28 188 . . . 1015 232 415 120 . . 47 147 367 . . . . . 46 . . . . . 715 Impact . | . . . . . . . . . . . . . . . . . . . . . . . . . . Slashing 627 | . . . . . . . . . . . . . . . . . . . . . . . 454 . 173 Piercing . | . . . . . . . . . . . . . . . . . . . . . . . . . . Entropic 4859 | . . . . . . . . . . . . . . . . . . . . . . . 4690 77 92 Highest Corruption 3 | . . . . . . . . . . . . . . . . . . . . 1 1 2 3 3 . Average Corruption 1 | . . . . . . . . . . . . . . . . . . . . 1 1 1 2 3 . Corruption Purged . | . . . . . . . . . . . . . . . . . . . . . . . . . . Corruption Blocked 17 | . . . . . . . . . . . . . . . . . . . . . . . . . 17 Effects 24 | . . . . . . . . . . . . . . . . . . . . 3 6 6 1 8 . Message Errors 7 | . . . . . . . . . . . . . . . . . . . . 1 2 1 1 2 . Matter Fused 7 | . . . . . . . . . . . . . . . . . . . . 2 1 2 . 2 . Heat Flow Errors 2 | . . . . . . . . . . . . . . . . . . . . . . . . 2 . Energy Discharges 2 | . . . . . . . . . . . . . . . . . . . . . 1 1 . . . Data Loss (minor) 4 | . . . . . . . . . . . . . . . . . . . . . 1 1 . 2 . Alerts 2 | . . . . . . . . . . . . . . . . . . . . . 1 1 . . . Overload Shots 40 | . . . . . . . 1 19 . . 5 15 . . . . . . . . . . . . . Effects 1 | . . . . . . . . . . . . 1 . . . . . . . . . . . . . Heat Surge 1 | . . . . . . . . . . . . 1 . . . . . . . . . . . . . Overflow Damage 813 | . . . . . 45 . 35 . . . . 4 . . . . . . . 75 . . 337 37 280 Projectiles 205 | . . . . . 17 . . . . . . 4 . . . . . . . 75 . . 5 37 67 Explosions 608 | . . . . . 28 . 35 . . . . . . . . . . . . . . . 332 . 213 Melee . | . . . . . . . . . . . . . . . . . . . . . . . . . . Knockbacks 12 | . . . . . . . . . . . . 5 . . . . . . . 3 2 . . . 2 Impact 2 | . . . . . . . . . . . . . . . . . . . . . . . . . 2 Kinetic 10 | . . . . . . . . . . . . 5 . . . . . . . 3 2 . . . . Secondary . | . . . . . . . . . . . . . . . . . . . . . . . . . . Self-Inflicted Damage 417 | . . . . . 175 . 46 38 . . . . . . . . . . . . . . 158 . . Shots 5 | . . . . . 2 . 1 1 . . . . . . . . . . . . . . 1 . . Rammed 7 | . 1 . . . . . . . . . . . . . . . . . . . . . . . 6 Targets Rammed 8 | . 1 . . . . . . . . . . . . . . . . . . . . . . . 7 Kicked . | . . . . . . . . . . . . . . . . . . . . . . . . . . Crushed 1 | . . . . . . . . . . . . . . . . . . . . . . . . . 1 Highest Temperature 424 | 20 192 . . . 199 194 156 153 . . 116 134 118 63 34 253 424 . 15 . 73 . . 138 249 Average Temperature 74 | 15 86 . . . 88 77 59 101 . . 43 33 63 34 34 132 157 . 6 . 24 . . 28 79 Received Heat Transfer 2198 | . 81 . . . 306 24 264 165 . . . 212 76 45 . 18 18 . 27 39 165 . 99 75 584 Siege Activations 1 | . . . . . . . . . . . . . . . . . . . . . . . 1 . . Total Turns 35 | . . . . . . . . . . . . . . . . . . . . . . . 35 . . Longest Duration 35 | . . . . . . . . . . . . . . . . . . . . . . . 35 . . Martial Activations . | . . . . . . . . . . . . . . . . . . . . . . . . . . Shielding Activations . | . . . . . . . . . . . . . . . . . . . . . . . . . . Robots Disrupted 1 | . . . . . . . . . . . . 1 . . . . . . . . . . . . . Combat Hostiles 1 | . . . . . . . . . . . . 1 . . . . . . . . . . . . . Robots Corrupted 3 | . . . . . 2 . . . . . . . 1 . . . . . . . . . . . . Combat Hostiles 2 | . . . . . 1 . . . . . . . 1 . . . . . . . . . . . . Parts Fried 13 | . . . . . 6 1 2 . . . . . 2 . . . . . . . . . . . 2 Impact Corruptions . | . . . . . . . . . . . . . . . . . . . . . . . . . . Robots Melted 1 | . . . . . . . . . . . . . 1 . . . . . . . . . . . . Combat Hostiles 1 | . . . . . . . . . . . . . 1 . . . . . . . . . . . . Parts Melted 11 | . . . . . 1 2 2 . . . . 1 3 . . 1 1 . . . . . . . . Heat Transferred 6777 | . 75 . . . 1038 222 1075 800 . . 148 885 400 250 . 296 481 . 407 . 200 . 250 50 200 Parts Sabotaged . | . . . . . . . . . . . . . . . . . . . . . . . . . . Parts Stolen 1 | . . . . . . . 1 . . . . . . . . . . . . . . . . . . Parts Stripped . | . . . . . . . . . . . . . . . . . . . . . . . . . . Power Chain Reactions 9 | . 1 . . . 2 . 2 1 . . . . . . . . . . . . 2 . . . 1 Alert | -11 -10 -10 -10 -9 -8 -7 -7 -7 -7 -6 -6 -6 -6 -6 -5 -5 -5 -5 -4 -4 -4 -4 -4 -3 -3 ------- Run | Yrd Mat Min Exi Min Mat Fac Low Low Dat Pro Fac Ext Cet Arc Fac Upp Upp Zhi Pro Fac Upp Upp War Pro Res Maximum Alert Level 3 | . . . . . 1 . . . . . . 3 2 1 . . . . . 3 . . . . 3 Low Security (%) 56 | 100 100 100 . 100 68 100 . . . . 100 36 . 4 100 . . . . 29 . . . . . Level 1 22 | . . . . . 31 . . . . . . 33 . 95 . . . . . 50 . . . . 23 Level 2 16 | . . . . . . . . . . . . 16 100 . . . . . . 2 . . . . 73 Level 3 4 | . . . . . . . . . . . . 13 . . . . . . . 18 . . . . 2 Level 4 . | . . . . . . . . . . . . . . . . . . . . . . . . . . Level 5 . | . . . . . . . . . . . . . . . . . . . . . . . . . . High Security . | . . . . . . . . . . . . . . . . . . . . . . . . . . Max Security . | . . . . . . . . . . . . . . . . . . . . . . . . . . Peak Influence 986 | 5 78 . . . 281 112 . . . . 65 986 601 350 94 . . . . 905 . . . . 769 Initial 600 | . . . . . . 112 . . . . . . 540 178 94 . . . . 270 . . . . 600 Average 215 | . 11 . . . 104 25 . . . . 7 342 523 294 39 . . . . 360 . . . . 508 Influence Increases 8860 | 5 162 . . . 636 140 305 225 . . 108 1582 177 192 39 100 200 . 660 1079 501 54 1014 130 1551 Destroy 0b10 Robot/C 4040 | . 100 . . . 280 20 160 160 . . 60 740 80 80 . 40 80 . 280 380 220 20 780 120 440 Destroy 0b10 Robot/NC 135 | 5 . . . . 30 10 . . . . . 20 5 . . . . . . 15 . . 10 . 40 Destroy Leader 550 | . 20 . . . 88 12 10 20 . . . 84 . . . 10 20 . 50 74 50 10 . 10 92 Allied During Kill 2221 | . . . . . . . . . . . . 663 80 80 . 50 100 . 330 439 231 24 224 . . Trap Triggered on 0b10 60 | . . . . . . . . . . . . 60 . . . . . . . . . . . . . Successful Hack 208 | . 24 . . . 11 83 . . . . 14 . 9 . 24 . . . . 43 . . . . . Disable Machine 225 | . 15 . . . 45 15 . . . . 15 . . 30 15 . . . . 60 . . . . 30 Destroy Structure 296 | . 3 . . . 77 . . . . . 4 15 3 2 . . . . . 68 . . . . 124 Advance Influence 600 | . . . . . . . . . . . . . . . . . . . . . . . . . 600 Partial Spotted 15 | . . . . . . . . . . . 15 . . . . . . . . . . . . . . Lose Combat Pursuer 510 | . . . . . 105 . 135 45 . . . . . . . . . . . . . . . . 225 Influence Decreases 8097 | 5 162 . . . 389 380 312 225 . . 108 616 696 369 309 80 144 76 230 638 701 443 394 1032 788 Entered New Map 2886 | . . . . . . 135 4 . . . . . 426 269 176 . 4 76 . 160 323 129 282 902 . Time Decay 4141 | 5 162 . . . 369 245 288 165 . . 108 456 170 100 133 80 120 . 170 398 318 294 32 130 398 Search Patrol Dispatched 200 | . . . . . . . . . . . . . . . . . . . . . . . . . 200 Lost Part 390 | . . . . . 20 . 20 60 . . . 20 40 . . . . . . . 20 . 20 . 190 Lost Ally 480 | . . . . . . . . . . . . 140 60 . . . 20 . 60 80 40 20 60 . . Squads Dispatched 29 | . 2 . . . 3 3 . . . . 3 3 . . . . . . . 6 . . . . 9 Investigation 3 | . 1 . . . 1 . . . . . . . . . . . . . . 1 . . . . . Extermination 6 | . . . . . . 1 . . . . 1 . . . . . . . . 1 . . . . 3 Reinforcement 11 | . 1 . . . 2 2 . . . . 2 1 . . . . . . . 1 . . . . 2 Assault 3 | . . . . . . . . . . . . 2 . . . . . . . . . . . . 1 Garrison 6 | . . . . . . . . . . . . . . . . . . . . 3 . . . . 3 Intercept . | . . . . . . . . . . . . . . . . . . . . . . . . . . Searches Triggered 2 | . . . . . . . . . . . . . . . . . . . . . . . . . 2 Data Miner Redirects 2 | . . . . . . . . . . . . 2 . . . . . . . . . . . . . Construction Impeded 3 | . . . . . . 1 . . . . . 1 . . . . . . . . . . . . 1 Haulers Reinforced . | . . . . . . . . . . . . . . . . . . . . . . . . . . Active Scanning Responses . | . . . . . . . . . . . . . . . . . . . . . . . . . . Cargo Convoy Interrupts 1 | . . . . . . . . . . . . . . . . . . . . . . . . . 1 Stealth | -11 -10 -10 -10 -9 -8 -7 -7 -7 -7 -6 -6 -6 -6 -6 -5 -5 -5 -5 -4 -4 -4 -4 -4 -3 -3 --------- Run | Yrd Mat Min Exi Min Mat Fac Low Low Dat Pro Fac Ext Cet Arc Fac Upp Upp Zhi Pro Fac Upp Upp War Pro Res Distress Signals 15 | . 1 . . . . 1 . . . . . 2 1 . . . . . . 1 . . 1 1 7 Communications Jammed . | . . . . . . . . . . . . . . . . . . . . . . . . . . Distress Signals . | . . . . . . . . . . . . . . . . . . . . . . . . . . Times Spotted 281 | . 7 . . . 23 9 20 10 . . 6 37 5 6 . 2 4 . 13 9 12 1 44 10 63 Peak Tracking Total 20 | . 3 . . . 5 2 4 7 . . 4 4 5 2 . 1 2 . 7 4 3 1 20 3 15 Tactical Retreats 18 | . . . . . 4 . 6 2 . . . . . . . . . . . . . . . . 6 Traps | -11 -10 -10 -10 -9 -8 -7 -7 -7 -7 -6 -6 -6 -6 -6 -5 -5 -5 -5 -4 -4 -4 -4 -4 -3 -3 ------- Run | Yrd Mat Min Exi Min Mat Fac Low Low Dat Pro Fac Ext Cet Arc Fac Upp Upp Zhi Pro Fac Upp Upp War Pro Res Traps Triggered 4 | . . . . . . 1 . . . . 3 . . . . . . . . . . . . . . Indirectly . | . . . . . . . . . . . . . . . . . . . . . . . . . . Trap Hack Attempts . | . . . . . . . . . . . . . . . . . . . . . . . . . . Triggered . | . . . . . . . . . . . . . . . . . . . . . . . . . . Disarmed . | . . . . . . . . . . . . . . . . . . . . . . . . . . Reprogrammed . | . . . . . . . . . . . . . . . . . . . . . . . . . . Reused 6 | . . . . . . . . . . . . 6 . . . . . . . . . . . . . Traps Reconfigurated 12 | . . . . . . . . . . . . 12 . . . . . . . . . . . . . Traps Extracted . | . . . . . . . . . . . . . . . . . . . . . . . . . . Installed . | . . . . . . . . . . . . . . . . . . . . . . . . . . Triggered 6 | . . . . . . . . . . . . 6 . . . . . . . . . . . . . Machines | -11 -10 -10 -10 -9 -8 -7 -7 -7 -7 -6 -6 -6 -6 -6 -5 -5 -5 -5 -4 -4 -4 -4 -4 -3 -3 ---------- Run | Yrd Mat Min Exi Min Mat Fac Low Low Dat Pro Fac Ext Cet Arc Fac Upp Upp Zhi Pro Fac Upp Upp War Pro Res Machines Disabled 21 | . 1 . . . 3 1 1 . . . 1 . . 2 1 . . . . 4 4 . 1 . 2 Max in Single Turn 2 | . 1 . . . 1 1 1 . . . 1 . . . 1 . . . . 1 2 . . . 1 Garrison Access 1 | . . . . . 1 . . . . . . . . . . . . . . . . . . . . Energy Cycler 2 | . . . . . . . . . . . . 2 . . . . . . . . . . . . . Machines Repaired . | . . . . . . . . . . . . . . . . . . . . . . . . . . Machines Dismantled . | . . . . . . . . . . . . . . . . . . . . . . . . . . Machines Sabotaged . | . . . . . . . . . . . . . . . . . . . . . . . . . . Overloaded Fab Kills . | . . . . . . . . . . . . . . . . . . . . . . . . . . Hacking | -11 -10 -10 -10 -9 -8 -7 -7 -7 -7 -6 -6 -6 -6 -6 -5 -5 -5 -5 -4 -4 -4 -4 -4 -3 -3 --------- Run | Yrd Mat Min Exi Min Mat Fac Low Low Dat Pro Fac Ext Cet Arc Fac Upp Upp Zhi Pro Fac Upp Upp War Pro Res Machines Accessed 55 | . 6 . 2 . 6 9 . . 3 . 4 2 1 . 2 . . 4 . 7 . . 5 . 4 Terminals 30 | . 6 . . . 4 7 . . . . 1 2 1 . 2 . . . . 5 . . . . 2 Fabricators 4 | . . . . . . 2 . . . . 2 . . . . . . . . . . . . . . Repair Stations 2 | . . . . . 1 . . . . . . . . . . . . . . 1 . . . . . Recycling Units . | . . . . . . . . . . . . . . . . . . . . . . . . . . Scanalyzers 4 | . . . . . . . . . . . 1 . . . . . . . . 1 . . . . 2 Garrison Access 1 | . . . . . 1 . . . . . . . . . . . . . . . . . . . . Total Hacks 183 | . 20 . 5 . 18 20 . . 24 . 15 6 1 . 3 . . 16 . 37 . . 10 . 8 Successful 114 | . 8 . 5 . 7 11 . . 24 . 7 2 1 . 1 . . 16 . 21 . . 10 . 1 Failed 66 | . 11 . . . 11 9 . . . . 7 4 . . 2 . . . . 15 . . . . 7 Catastrophic 18 | . 3 . . . 2 4 . . . . . . . . 1 . . . . 6 . . . . 2 Database Lockouts 3 | . 1 . . . . . . . . . 1 . . . . . . . . 1 . . . . . Manual 59 | . 15 . 1 . 4 12 . . . . 3 3 1 . . . . . . 17 1 . 1 . 1 Terminals 81 | . 20 . . . 11 16 . . . . 2 6 1 . 3 . . . . 20 . . . . 2 Fabricators 7 | . . . . . . 4 . . . . 3 . . . . . . . . . . . . . . Repair Stations 10 | . . . . . 5 . . . . . . . . . . . . . . 5 . . . . . Recycling Units . | . . . . . . . . . . . . . . . . . . . . . . . . . . Scanalyzers 28 | . . . . . . . . . . . 10 . . . . . . . . 12 . . . . 6 Garrison Access 2 | . . . . . 2 . . . . . . . . . . . . . . . . . . . . Terminal Hacks 78 | . 6 . 5 . 3 6 . . 24 . . 1 1 . 1 . . 16 . 5 . . 10 . . Record 17 | . . . 4 . . 1 . . 4 . . . . . . . . 4 . . . . 4 . . Part Schematic 15 | . . . . . . . . . 10 . . . . . . . . 4 . 1 . . . . . Robot Schematic 7 | . . . . . . . . . 7 . . . . . . . . . . . . . . . . Robot Analysis 6 | . 1 . . . . 1 . . . . . . . . . . . 4 . . . . . . . Prototype ID Bank 16 | . 3 . . . . 1 . . 3 . . . . . . . . 4 . . . . 5 . . Open Door 2 | . . . . . . . . . . . . . 1 . . . . . . . . . 1 . . Branch Access Points 3 | . . . . . 1 1 . . . . . . . . . . . . . 1 . . . . . Terminal Index 3 | . . . . . . 2 . . . . . . . . . . . . . 1 . . . . . Alert Level 2 | . . . . . 1 . . . . . . . . . . . . . . 1 . . . . . Locate Traps 2 | . . . . . 1 . . . . . . 1 . . . . . . . . . . . . . Patrol Status 1 | . 1 . . . . . . . . . . . . . . . . . . . . . . . . Hauler Manifests 1 | . 1 . . . . . . . . . . . . . . . . . . . . . . . . Zone Layout 2 | . . . . . . . . . . . . . . . 1 . . . . 1 . . . . . Proto ID Catalog 1 | . . . 1 . . . . . . . . . . . . . . . . . . . . . . Fabricator Hacks 1 | . . . . . . 1 . . . . . . . . . . . . . . . . . . . Network Status 1 | . . . . . . 1 . . . . . . . . . . . . . . . . . . . Repair Station Hacks 7 | . . . . . 3 . . . . . . . . . . . . . . 4 . . . . . Scan Component 4 | . . . . . 2 . . . . . . . . . . . . . . 2 . . . . . Repair 3 | . . . . . 1 . . . . . . . . . . . . . . 2 . . . . . Recycling Unit Hacks . | . . . . . . . . . . . . . . . . . . . . . . . . . . Scanalyzer 16 | . . . . . . . . . . . 6 . . . . . . . . 9 . . . . 1 Insert Component 5 | . . . . . . . . . . . 2 . . . . . . . . 3 . . . . . Analyze 4 | . . . . . . . . . . . 1 . . . . . . . . 3 . . . . . Retrieve Study 7 | . . . . . . . . . . . 3 . . . . . . . . 3 . . . . 1 Garrison Access Hacks 1 | . . . . . 1 . . . . . . . . . . . . . . . . . . . . Seal Access 1 | . . . . . 1 . . . . . . . . . . . . . . . . . . . . Unauthorized Hacks 11 | . 2 . . . . 4 . . . . 1 1 . . . . . . . 3 . . . . . Terminals 10 | . 2 . . . . 3 . . . . 1 1 . . . . . . . 3 . . . . . Botnet 10 | . 2 . . . . 3 . . . . 1 1 . . . . . . . 3 . . . . . Fabricators 1 | . . . . . . 1 . . . . . . . . . . . . . . . . . . . Fabnet 1 | . . . . . . 1 . . . . . . . . . . . . . . . . . . . Repair Stations . | . . . . . . . . . . . . . . . . . . . . . . . . . . Recycling Units . | . . . . . . . . . . . . . . . . . . . . . . . . . . Scanalyzers . | . . . . . . . . . . . . . . . . . . . . . . . . . . Garrison Access . | . . . . . . . . . . . . . . . . . . . . . . . . . . Data Cores Recovered . | . . . . . . . . . . . . . . . . . . . . . . . . . . Used . | . . . . . . . . . . . . . . . . . . . . . . . . . . Hacking Detections 40 | . 6 . . . 6 9 . . . . 4 2 . . 2 . . . . 7 . . . . 4 Full Trace Events 1 | . . . . . . . . . . . . . . . . . . . . 1 . . . . . Feedback Events . | . . . . . . . . . . . . . . . . . . . . . . . . . . Feedback Blocked . | . . . . . . . . . . . . . . . . . . . . . . . . . . Robot Schematics Acquired 7 | . . . . . . . . . 7 . . . . . . . . . . . . . . . . Robots Built . | . . . . . . . . . . . . . . . . . . . . . . . . . . Authchips . | . . . . . . . . . . . . . . . . . . . . . . . . . . Time . | . . . . . . . . . . . . . . . . . . . . . . . . . . Total Robot Build Rating . | . . . . . . . . . . . . . . . . . . . . . . . . . . Part Schematics Acquired 18 | . . . . . . . . . 10 . 1 . . . . . . 4 . 3 . . . . . Parts Built . | . . . . . . . . . . . . . . . . . . . . . . . . . . Authchips . | . . . . . . . . . . . . . . . . . . . . . . . . . . Time . | . . . . . . . . . . . . . . . . . . . . . . . . . . Total Part Build Rating . | . . . . . . . . . . . . . . . . . . . . . . . . . . Part Studies Acquired 7 | . . . . . . . . . . . 3 . . . . . . . . 3 . . . . 1 Parts Repaired 3 | . . . . . 1 . . . . . . . . . . . . . . 2 . . . . . Time 248 | . . . . . 32 . . . . . . . . . . . . . . 216 . . . . . Parts Recycled . | . . . . . . . . . . . . . . . . . . . . . . . . . . Recycled Matter . | . . . . . . . . . . . . . . . . . . . . . . . . . . Retrieved Matter . | . . . . . . . . . . . . . . . . . . . . . . . . . . Retrieved Components . | . . . . . . . . . . . . . . . . . . . . . . . . . . Parts Scanalyzed 3 | . . . . . . . . . . . 1 . . . . . . . . 2 . . . . . Part Schematics Acquired 3 | . . . . . . . . . . . 1 . . . . . . . . 2 . . . . . Parts Damaged 1 | . . . . . . . . . . . 1 . . . . . . . . . . . . . . Bothacking | -11 -10 -10 -10 -9 -8 -7 -7 -7 -7 -6 -6 -6 -6 -6 -5 -5 -5 -5 -4 -4 -4 -4 -4 -3 -3 ------------ Run | Yrd Mat Min Exi Min Mat Fac Low Low Dat Pro Fac Ext Cet Arc Fac Upp Upp Zhi Pro Fac Upp Upp War Pro Res Used RIF Installer . | . . . . . . . . . . . . . . . . . . . . . . . . . . Robots Hacked 3 | . . . . . . . . . . . . 2 . 1 . . . . . . . . . . . Non-combat . | . . . . . . . . . . . . . . . . . . . . . . . . . . Combat 3 | . . . . . . . . . . . . 2 . 1 . . . . . . . . . . . Robot Hacks Applied . | . . . . . . . . . . . . . . . . . . . . . . . . . . Relay Couplers Released 4 | . . . . . . . . . . . . . . . . . . . . . . . . . 4 Programmers 4 | . . . . . . . . . . . . . . . . . . . . . . . . . 4 Fabnet Peak Effective % 3 | . . . . . . . . . . 3 3 3 3 3 1 1 1 1 . . . . . . . Autooverrided 3 | . . . . . . . . . . . . 2 . 1 . . . . . . . . . . . Robots Rewired 19 | . . . . . . . . . . . . 15 . . . . . . . . 4 . . . . Allies Hacked 2 | . . . . . . . . . . . . . . . . . 2 . . . . . . . . Hacks Repelled . | . . . . . . . . . . . . . . . . . . . . . . . . . . Allies | -11 -10 -10 -10 -9 -8 -7 -7 -7 -7 -6 -6 -6 -6 -6 -5 -5 -5 -5 -4 -4 -4 -4 -4 -3 -3 -------- Run | Yrd Mat Min Exi Min Mat Fac Low Low Dat Pro Fac Ext Cet Arc Fac Upp Upp Zhi Pro Fac Upp Upp War Pro Res Total Allies 35 | . . . . . . . . . . . . 25 5 1 . . . . . . 4 . . . . Largest Group 19 | . . . . . . . . . . . . 19 14 14 12 12 12 11 11 8 7 6 4 . . Highest-Rated Group 912 | . . . . . . . . . . . . 681 912 912 714 714 714 683 683 523 416 368 282 . . Highest-Rated Ally 159 | . . . . . . . . . . . . 159 159 159 96 96 96 96 96 96 96 96 96 . . Total Orders . | . . . . . . . . . . . . . . . . . . . . . . . . . . Ally Attacks 429 | . . . . . . . . . . . . 173 37 13 . 5 15 . 54 69 38 4 21 . . Total Damage 10321 | . . . . . . . . . . . . 3311 693 378 . 170 281 . 1214 2153 1334 161 626 . . Kills 69 | . . . . . . . . . . . . 30 3 5 . . 2 . 5 15 4 1 4 . . Allies Corrupted 4 | . . . . . . . . . . . . . . . . . 1 . . 1 . 2 . . . Allies Melted 2 | . . . . . . . . . . . . . . . . . . . . . . . 2 . . Intel | -11 -10 -10 -10 -9 -8 -7 -7 -7 -7 -6 -6 -6 -6 -6 -5 -5 -5 -5 -4 -4 -4 -4 -4 -3 -3 ------- Run | Yrd Mat Min Exi Min Mat Fac Low Low Dat Pro Fac Ext Cet Arc Fac Upp Upp Zhi Pro Fac Upp Upp War Pro Res Active Infowar (turns) 13272 | . 56 . . . 1213 767 979 390 84 163 724 1365 355 207 293 353 460 269 352 955 710 643 1422 609 903 Optics 2697 | . . . . . . . . . . . . . . . . . . . . . . . 1185 609 903 Terrain 10138 | . . . . . . 546 558 . . . 676 1365 355 207 293 353 460 269 352 955 710 643 1349 254 793 Structural 56 | . 56 . . . . . . . . . . . . . . . . . . . . . . . . Traps 7322 | . . . . . . . . . . . . 336 355 207 293 353 460 269 352 955 710 643 1349 170 870 Machine Analysis 13147 | . . . . . 1213 767 979 390 84 163 724 1365 355 207 293 353 460 269 352 955 710 643 1422 609 834 Robot Analysis Total 6 | . 1 . . . . 1 . . . . . . . . . . . 4 . . . . . . . Derelict Logs Recovered 9 | . . . . . . . 1 2 . . . . . . . 3 . . 1 . 1 1 . . . Drone Launches . | . . . . . . . . . . . . . . . . . . . . . . . . . . Drone Recoveries . | . . . . . . . . . . . . . . . . . . . . . . . . . . Exploration | -11 -10 -10 -10 -9 -8 -7 -7 -7 -7 -6 -6 -6 -6 -6 -5 -5 -5 -5 -4 -4 -4 -4 -4 -3 -3 ------------- Run | Yrd Mat Min Exi Min Mat Fac Low Low Dat Pro Fac Ext Cet Arc Fac Upp Upp Zhi Pro Fac Upp Upp War Pro Res Turns Passed 14797 | 115 891 52 399 35 1262 767 979 390 84 163 724 1365 355 207 293 353 460 269 352 955 710 643 1422 609 943 Spaces Moved 8777 | 60 560 45 362 23 767 614 775 296 77 149 435 840 116 85 164 208 286 150 178 475 363 373 658 296 422 Core 148 | 5 . . . . . . . . . . . . . . . . . . . . . . . . 143 Treads 3752 | 55 367 . . . . . . . . . . . . . 65 208 286 150 178 475 363 373 657 296 279 Legs 1 | . . . . . . . . . . . . . . . . . . . . . . . 1 . . Wheels 4876 | . 193 45 362 23 767 614 775 296 77 149 435 840 116 85 99 . . . . . . . . . . Hover . | . . . . . . . . . . . . . . . . . . . . . . . . . . Flight . | . . . . . . . . . . . . . . . . . . . . . . . . . . Fastest Speed 50 | 50 105 105 105 120 105 105 110 110 110 110 110 110 110 175 130 150 150 150 150 152 150 170 170 170 50 Average Speed 133 | 150 141 105 109 120 107 109 110 110 110 110 122 110 160 175 137 150 150 151 150 167 154 170 170 172 136 Slowest Speed 465 | 160 160 105 120 120 120 120 110 110 110 110 130 110 175 175 150 150 150 385 150 465 170 170 240 175 350 Overloaded Moves . | . . . . . . . . . . . . . . . . . . . . . . . . . . Propulsion Burnouts . | . . . . . . . . . . . . . . . . . . . . . . . . . . Robots Hopped . | . . . . . . . . . . . . . . . . . . . . . . . . . . Potential Cave-ins 2 | . . . . . . . . . . . . . . . . . . . . . . . . 2 . Cave-ins Triggered . | . . . . . . . . . . . . . . . . . . . . . . . . . . Teleports 1 | . . . . . . . . . . . . . . . . . . . . . . . 1 . . Exploration Rate (%) 47 | 3 90 19 77 11 46 19 84 55 68 33 12 80 65 80 4 44 45 60 40 11 61 57 91 59 19 Regions Visited 25 Branch Regions 18 Pre-discovered Areas 5 | . . . 1 . . . . . 1 . . . . . . . . 3 . . . . . . . Known Exits Taken 4 | . . . . . . 1 . . . . . . . . 1 1 . . . 1 . . . . . Unknown Exits Taken 21 | 1 1 1 1 1 1 . 1 1 1 1 1 1 1 1 . . 1 1 1 . 1 1 1 1 . Scrap Searched 18 | . . . . . . . 3 2 . 1 . . . . . . 1 . 2 . 3 3 . 3 . Spaces Dug 10 | . . . . . . . . . . . 3 . . . . . . . . 1 . . . 3 3 Terrain Destroyed 487 | . 3 . . . 81 . 9 17 . . 4 9 . . . . 41 . 5 13 29 . 172 25 79 Melee . | . . . . . . . . . . . . . . . . . . . . . . . . . . Projectile 97 | . . . . . . . . 5 . . 4 9 . . . . 1 . 5 13 18 . 6 25 11 AOE 390 | . 3 . . . 81 . 9 12 . . . . . . . . 40 . . . 11 . 166 . 68 Terrain Rammed . | . . . . . . . . . . . . . . . . . . . . . . . . . . Walls Destroyed . | . . . . . . . . . . . . . . . . . . . . . . . . . . Machines Disabled . | . . . . . . . . . . . . . . . . . . . . . . . . . . Actions | -11 -10 -10 -10 -9 -8 -7 -7 -7 -7 -6 -6 -6 -6 -6 -5 -5 -5 -5 -4 -4 -4 -4 -4 -3 -3 --------- Run | Yrd Mat Min Exi Min Mat Fac Low Low Dat Pro Fac Ext Cet Arc Fac Upp Upp Zhi Pro Fac Upp Upp War Pro Res Total 11209 | 78 635 49 368 30 1134 689 838 329 76 148 611 1217 267 137 230 242 303 193 232 606 456 383 921 346 691 Wait 1460 | 9 9 5 . 8 278 28 19 . . . 147 174 133 40 53 30 4 21 22 84 10 3 189 13 181 Move 8752 | 59 559 44 361 22 766 613 774 295 76 148 434 839 115 84 163 207 285 149 177 474 362 372 657 295 422 Hop . | . . . . . . . . . . . . . . . . . . . . . . . . . . Pick Up 116 | 2 15 . 3 . 20 6 4 7 . . 6 8 1 1 4 . 1 3 1 11 7 2 6 3 5 Fast Attach 80 | 6 8 . . . 5 9 1 1 . . 2 6 3 2 . . . 9 3 2 3 1 15 . 4 Attach 63 | . . . . . 5 3 3 6 . . 4 3 4 . 2 . 1 . 1 5 5 . 5 5 11 Detach 28 | . 3 . . . . 3 . . . . 1 3 1 2 . . . 2 . 1 2 1 2 3 4 Swap 49 | . 5 . 1 . 9 2 1 . . . 1 10 . 2 4 . 2 . 3 3 1 1 1 . 3 Drop 146 | . 17 . 3 . 12 14 3 1 . . 6 15 2 2 3 . 1 9 6 11 8 3 22 1 7 Fire 352 | 2 18 . . . 39 11 33 19 . . 10 31 8 4 1 5 9 . 19 15 31 . 24 26 47 Melee . | . . . . . . . . . . . . . . . . . . . . . . . . . . Ram . | . . . . . . . . . . . . . . . . . . . . . . . . . . Kick . | . . . . . . . . . . . . . . . . . . . . . . . . . . Crush 8 | . 1 . . . . . . . . . . . . . . . . . . . . . . . 7 Escape Stasis . | . . . . . . . . . . . . . . . . . . . . . . . . . . Rewire 155 | . . . . . . . . . . . . 128 . . . . . . . . 27 . . . . Trap . | . . . . . . . . . . . . . . . . . . . . . . . . . . Miscellaneous . | . . . . . . . . . . . . . . . . . . . . . . . . . . Route ------- -11/Scrapyard -10/Materials (discovered 5 exits: [*Mat x3] / [*Min x2]) -10/Mines (discovered 2 exits: [*Mat] / *Exi) -10/Exiles -9/Mines -8/Materials -7/Factory (discovered 2 exits: *Low x2) -7/Lower Caves -7/Lower Caves -7/Data Miner -6/Proximity Caves -6/Factory (discovered 2 exits: *Ext x2) -6/Extension (discovered 3 exits: *Fac x2 / *Cet) -6/Cetus -6/Archives (discovered 3 exits: *Fac / [*Hub x2]) -5/Factory -5/Upper Caves -5/Upper Caves (discovered 2 exits: *Fac / *Zhi) -5/Zhirov -4/Proximity Caves -4/Factory (discovered 4 exits: *Res / *Upp x2 / Arm) -4/Upper Caves -4/Upper Caves -4/Warlord -3/Proximity Caves -3/Research History --------- Turn | Location | Event 3 | -11/Scrapyard | Discovered new exit (range 16) 116 | -11/Scrapyard | Entered Materials 175 | -10/Materials | Discovered new exit (range 14) 258 | -10/Materials | Met 8R-AWN 308 | -10/Materials | Build established: Mutant 449 | -10/Materials | Discovered new exit (range 9) 557 | -10/Materials | Discovered new exit (range 11) 758 | -10/Materials | Discovered new exit (range 13) 860 | -10/Materials | Central database locked down 939 | -10/Materials | Discovered new exit (range 10) 1007 | -10/Materials | Entered Mines 1008 | -10/Mines | Followed 8R-AWN into the Mines 1038 | -10/Mines | Discovered new exit (range 8) 1054 | -10/Mines | Discovered new exit (range 5) 1059 | -10/Mines | Entered Exiles 1085 | -10/Exiles | Welcomed by 8R-AWN 1103 | -10/Exiles | Met EX-HEX 1131 | -10/Exiles | Met EX-BIN 1145 | -10/Exiles | Aligned with FarCom system 1146 | -10/Exiles | Given EX-Vault access code 1170 | -10/Exiles | Opened EX-Vault 1178 | -10/Exiles | Found Trap Reconfigurator 1203 | -10/Exiles | Warned to stay clear of 0b10 Research branches 1234 | -10/Exiles | Met EX-DEC 1267 | -10/Exiles | Visited The Gauntlet 1375 | -10/Exiles | Learned location of Zion (-6) 1444 | -10/Exiles | Discovered new exit (range 14) 1458 | -10/Exiles | Left Exiles lab with Trap Reconfigurator 1458 | -10/Exiles | Entered Mines 1470 | -9/Mines | Discovered new exit (range 5) 1493 | -9/Mines | Entered Materials 1493 | -8/Materials | Evolved 4 slots: Propulsion x1, Utility x3 2461 | -8/Materials | Repaired Med. Armor Plating 2741 | -8/Materials | Discovered new exit (range 8) 2755 | -8/Materials | Entered Factory 2755 | -7/Factory | Evolved 2 slots: Utility x2 2959 | -7/Factory | Allied Derelicts emerged from ambush trap array 3052 | -7/Factory | Identified exit to Lower Caves 3263 | -7/Factory | Build established: Skirmisher 3522 | -7/Factory | Entered Lower Caves 3523 | -7/Lower Caves | Encountered a Warlord checkpoint 3675 | -7/Lower Caves | Attracted the attention of an 0b10 checkpoint 4396 | -7/Lower Caves | Attacked by a delusional Derelict stockpiling parts 4427 | -7/Lower Caves | Build established: Mutant 4469 | -7/Lower Caves | Learned Factory stockpile data 4494 | -7/Lower Caves | Discovered new exit (range 7) 4501 | -7/Lower Caves | Entered another Lower Caves area 4566 | -7/Lower Caves | Learned Factory emergency access door positions 4571 | -7/Lower Caves | Destroyed 8 combat bots 4579 | -7/Lower Caves | Lost 6 parts (1p2n1u2w) 4682 | -7/Lower Caves | Spotted B-75 Beast 4717 | -7/Lower Caves | Learned Factory terminal intel 4855 | -7/Lower Caves | Discovered new exit (range 6) 4891 | -7/Lower Caves | Entered Data Miner 4891 | -7/Data Miner | Discovered new exit (range 6) 4912 | -7/Data Miner | Met Data Miner 4933 | -7/Data Miner | Learned location of Section 7 (-3) 4933 | -7/Data Miner | Acquired the access code to Warlord's prototype stash 4948 | -7/Data Miner | Received God Mode back door access code from Data Miner 4975 | -7/Data Miner | Entered Proximity Caves 5125 | -6/Proximity Caves | Discovered new exit (range 5) 5138 | -6/Proximity Caves | Entered Factory 5138 | -6/Factory | Evolved 2 slots: Utility x1, Weapon x1 5141 | -6/Factory | Loaded intel: 28 terminal locations 5368 | -6/Factory | Discovered new exit (range 14) 5441 | -6/Factory | Build established: Skirmisher 5734 | -6/Factory | Central database locked down 5835 | -6/Factory | Discovered new exit (range 16) 5862 | -6/Factory | Entered Extension 6051 | -6/Extension | Rescued a captive Derelict 6051 | -6/Extension | Rescued a captive Derelict 6113 | -6/Extension | Rescued A7 6139 | -6/Extension | Rescued a captive Derelict 6140 | -6/Extension | Rescued a captive Derelict 6148 | -6/Extension | Rescued a captive Derelict 6148 | -6/Extension | Rescued a captive Derelict 6266 | -6/Extension | Rescued a captive Derelict 6447 | -6/Extension | Energy Cycler disabled 6448 | -6/Extension | Rescued a captive Derelict 6448 | -6/Extension | Rescued a captive Derelict 6449 | -6/Extension | Rescued a captive Derelict 6449 | -6/Extension | Rescued a captive Derelict 6451 | -6/Extension | Rescued a captive Derelict 6451 | -6/Extension | Rescued a captive Derelict 6508 | -6/Extension | Build established: Commander-Skirmisher 6816 | -6/Extension | Spotted B-75 Beast 6825 | -6/Extension | Allies destroyed B-75 Beast 6840 | -6/Extension | Discovered new exit (range 16) 6847 | -6/Extension | Spotted B-75 Beast 6861 | -6/Extension | Allies destroyed B-75 Beast 6912 | -6/Extension | First assault squad dispatched 6931 | -6/Extension | Incoming assault squad redirected 6939 | -6/Extension | Incoming assault squad redirected 7184 | -6/Extension | Discovered new exit (range 10) 7187 | -6/Extension | Discovered new exit (range 6) 7227 | -6/Extension | Entered Cetus 7227 | -6/Cetus | Accompanied by 13 allies (A7) 7232 | -6/Cetus | Acquired a Cetus Manufacturing Module code from A7 7242 | -6/Cetus | Spotted Cetus Guard 7242 | -6/Cetus | Spotted Cetus Guard 7245 | -6/Cetus | Spotted Cetus Guard 7246 | -6/Cetus | Spotted Cetus Guard 7252 | -6/Cetus | Destroyed Cetus Guard 7264 | -6/Cetus | Allies destroyed Cetus Guard 7265 | -6/Cetus | Allies destroyed Cetus Guard 7270 | -6/Cetus | Destroyed Cetus Guard 7300 | -6/Cetus | Lost 4 parts (1n1u2w) 7300 | -6/Cetus | Lost 4 allies 7355 | -6/Cetus | Started Cetus Manufacturing Module 7366 | -6/Cetus | Escorted A7 to Cetus Mainframe 7380 | -6/Cetus | Manufactured an Enhanced Grunt 7405 | -6/Cetus | Manufactured an Enhanced Grunt 7430 | -6/Cetus | Manufactured an Enhanced Grunt 7455 | -6/Cetus | Manufactured an Enhanced Grunt 7480 | -6/Cetus | Manufactured an Enhanced Grunt 7535 | -6/Cetus | Discovered new exit (range 16) 7582 | -6/Cetus | Entered Archives 7582 | -6/Archives | Accompanied by 14 allies (A7) 7587 | -6/Archives | Received a hacking code to weaken MAIN.C 7629 | -6/Archives | Discovered new exit (range 15) 7653 | -6/Archives | Discovered new exit (range 15) 7685 | -6/Archives | Discovered new exit (range 15) 7789 | -6/Archives | Entered Factory 7789 | -5/Factory | Accompanied by 12 allies 7789 | -5/Factory | Evolved 2 slots: Propulsion x1, Utility x1 7922 | -5/Factory | Discovered new exit (range 11) 8033 | -5/Factory | Identified exit to Upper Caves 8082 | -5/Factory | Entered Upper Caves 8082 | -5/Upper Caves | Accompanied by 12 allies 8139 | -5/Upper Caves | Learned Factory terminal intel 8151 | -5/Upper Caves | Identified exit to Upper Caves 8253 | -5/Upper Caves | Learned Factory garrison access intel 8344 | -5/Upper Caves | Attracted the attention of an 0b10 checkpoint 8435 | -5/Upper Caves | Entered another Upper Caves area 8435 | -5/Upper Caves | Accompanied by 12 allies 8456 | -5/Upper Caves | Discovered new exit (range 16) 8655 | -5/Upper Caves | Attracted the attention of an 0b10 checkpoint 8828 | -5/Upper Caves | Discovered new exit (range 10) 8895 | -5/Upper Caves | Entered Zhirov 8895 | -5/Zhirov | Accompanied by 11 allies 8895 | -5/Zhirov | Discovered new exit (range 3) 8922 | -5/Zhirov | Met Zhirov 8949 | -5/Zhirov | Learned location of Quarantine (-3) 8949 | -5/Zhirov | Learned location of Testing (-2) 8949 | -5/Zhirov | Learned location of Command (-1) 8964 | -5/Zhirov | Zhirov requested help retrieving the SGEMP Prototype 8988 | -5/Zhirov | Found Alien Artifact 8988 | -5/Zhirov | Identified Integrated Dissipator 8988 | -5/Zhirov | Installed Integrated Dissipator, increased core heat dissipation (+20) 9010 | -5/Zhirov | Found Alien Artifact 9164 | -5/Zhirov | Entered Proximity Caves 9164 | -4/Proximity Caves | Accompanied by 11 allies 9231 | -4/Proximity Caves | Spotted B-86 Titan 9246 | -4/Proximity Caves | Allies destroyed B-86 Titan 9363 | -4/Proximity Caves | Learned Research stockpile data 9385 | -4/Proximity Caves | Attracted the attention of an 0b10 checkpoint 9455 | -4/Proximity Caves | Found Prototype Device 9455 | -4/Proximity Caves | Identified Exp. Thermal Shield 9469 | -4/Proximity Caves | Discovered new exit (range 15) 9516 | -4/Proximity Caves | Entered Factory 9516 | -4/Factory | Accompanied by 8 allies 9516 | -4/Factory | Evolved 2 slots: Utility x2 9517 | -4/Factory | Loaded intel: 26 terminal locations 9518 | -4/Factory | Loaded intel: 4 garrison access locations 9653 | -4/Factory | Central database locked down 9653 | -4/Factory | Identified Transdimensional Reconstructor 9741 | -4/Factory | Identified exit to Upper Caves 9741 | -4/Factory | Identified exit to Armory 9741 | -4/Factory | Watched by a mysterious "MATRIX" hacker 9801 | -4/Factory | Repaired Centrium Medium Armor Plating 9910 | -4/Factory | Repaired Centrium Heavy Treads 10227 | -4/Factory | Garrison activated, responded to threat 10388 | -4/Factory | Discovered new exit (range 10) 10471 | -4/Factory | Entered Upper Caves 10471 | -4/Upper Caves | Accompanied by 4 allies 10611 | -4/Upper Caves | Attacked by a delusional Derelict stockpiling Unaware 10747 | -4/Upper Caves | Build established: Scavenger-Tank 10822 | -4/Upper Caves | Spotted B-86 Titan 10857 | -4/Upper Caves | Destroyed B-86 Titan 10863 | -4/Upper Caves | Learned Research terminal intel 11113 | -4/Upper Caves | Acquired the password to a Derelict Tinkerer's latest research 11117 | -4/Upper Caves | Discovered new exit (range 13) 11127 | -4/Upper Caves | Found Prototype Special Weapon 11173 | -4/Upper Caves | Identified Molecular Deconstructor 11181 | -4/Upper Caves | Entered another Upper Caves area 11181 | -4/Upper Caves | Accompanied by 6 allies 11435 | -4/Upper Caves | Learned Research garrison access intel 11804 | -4/Upper Caves | Discovered new exit (range 8) 11824 | -4/Upper Caves | Entered Warlord 11824 | -4/Warlord | Accompanied by 4 allies 11858 | -4/Warlord | Discovered new exit (range 20) 11881 | -4/Warlord | System corruption cleaned by Quarantine Array 11983 | -4/Warlord | Learned Quarantine trap positions 11983 | -4/Warlord | Learned Research stockpile data 11984 | -4/Warlord | Learned 4 Armory zone layouts 11986 | -4/Warlord | Learned Armory repair station intel 12035 | -4/Warlord | Opened Warlord's prototype stash 12043 | -4/Warlord | Found Prototype Device 12043 | -4/Warlord | Identified Exp. Phase Shifter 12057 | -4/Warlord | Found Prototype Device 12057 | -4/Warlord | Identified Thermal Barrier 12061 | -4/Warlord | Found Prototype Processor 12061 | -4/Warlord | Identified Spectral Analyzer 12081 | -4/Warlord | Found Prototype Hackware 12081 | -4/Warlord | Identified System Mapper 12097 | -4/Warlord | Found Prototype Reactor 12238 | -4/Warlord | Visited the Vortex Lab 12246 | -4/Warlord | Found Prototype Energy Gun 12246 | -4/Warlord | Identified Vortex Rail 12250 | -4/Warlord | Warlord's base attacked by MAIN.C 12255 | -4/Warlord | Found Prototype Energy Gun 12255 | -4/Warlord | Identified Vortex Rifle 12259 | -4/Warlord | Found Prototype Launcher 12259 | -4/Warlord | Identified Vortex Catalyst Activator 12271 | -4/Warlord | Found Vortex Rail 12351 | -4/Warlord | Build established: Hacker-Tank 12394 | -4/Warlord | Met Warlord 12511 | -4/Warlord | Found Prototype Special Weapon 12511 | -4/Warlord | Identified RU-N14's Throwing Claymores v3 12516 | -4/Warlord | Found RU-N14's Throwing Claymores v3 12518 | -4/Warlord | Found RU-N14's Throwing Claymores v3 12600 | -4/Warlord | Warlord forces counterattacked 12925 | -4/Warlord | Warlord base infiltrated, sounded retreat 12926 | -4/Warlord | Enhanced Grunt warped into view 12926 | -4/Warlord | Enhanced Grunt warped into view 12926 | -4/Warlord | Enhanced Grunt warped into view 12926 | -4/Warlord | Enhanced Demolisher warped into view 12926 | -4/Warlord | Enhanced Demolisher warped into view 12926 | -4/Warlord | Enhanced Demolisher warped into view 12927 | -4/Warlord | Lost 4 allies 13037 | -4/Warlord | Lost 4 allies 13088 | -4/Warlord | Spotted Executioner 13088 | -4/Warlord | Spotted B-90 Cyclops 13090 | -4/Warlord | Spotted B-90 Cyclops 13094 | -4/Warlord | Spotted B-86 Titan 13094 | -4/Warlord | Spotted Executioner 13096 | -4/Warlord | Spotted Executioner 13099 | -4/Warlord | Destroyed Executioner 13104 | -4/Warlord | Destroyed B-90 Cyclops 13104 | -4/Warlord | Destroyed Executioner 13115 | -4/Warlord | Destroyed B-90 Cyclops 13123 | -4/Warlord | Spotted Executioner 13130 | -4/Warlord | Destroyed B-86 Titan 13145 | -4/Warlord | Destroyed Executioner 13158 | -4/Warlord | Warped through subspace 13164 | -4/Warlord | Spotted Striker 13171 | -4/Warlord | Lost 19 allies 13178 | -4/Warlord | Destroyed Striker 13199 | -4/Warlord | Destroyed 38 combat bots 13246 | -4/Warlord | Entered Proximity Caves 13248 | -3/Proximity Caves | Attracted the attention of an 0b10 checkpoint 13513 | -3/Proximity Caves | Spotter reported a threat 13515 | -3/Proximity Caves | Spotter reported a threat 13575 | -3/Proximity Caves | Build established: Scavenger-Tank 13611 | -3/Proximity Caves | Spotter reported a threat 13611 | -3/Proximity Caves | Spotter reported a threat 13650 | -3/Proximity Caves | Spotted B-86 Titan 13841 | -3/Proximity Caves | Discovered new exit (range 8) 13855 | -3/Proximity Caves | Entered Research 13855 | -3/Research | Evolved 2 slots: Power x1, Utility x1 13856 | -3/Research | Identified Vortex Chain Reactor 13857 | -3/Research | Loaded intel: 24 terminal locations 13858 | -3/Research | Loaded intel: 4 garrison access locations 14105 | -3/Research | Search patrols dispatched 14155 | -3/Research | Build established: Scavenger-Skirmisher 14355 | -3/Research | Search patrols dispatched 14357 | -3/Research | Garrison activated, responded to threat 14390 | -3/Research | Destroyed 10 combat bots 14605 | -3/Research | First assault squad dispatched 14695 | -3/Research | Destroyed 7 combat bots 14731 | -3/Research | Cargo convoy interrupted 14731 | -3/Research | Spotted Striker 14731 | -3/Research | Spotted Executioner 14735 | -3/Research | Spotted Executioner 14759 | -3/Research | Core integrity fell below 50% 14775 | -3/Research | Core integrity fell below 20% 14789 | -3/Research | Lost 18 parts (1p3n9u5w) 14798 | -3/Research | Destroyed by S-43 Plague with Heavy Machine Gun Last Messages --------------- 14730_ X-77 Beamer unfolds itself. 14730_ M-36 Artificer unfolds itself. 14731_ ALERT: Cargo convoy interrupted, initiating access lockdown. 14731_ Terminal disabled. 14734_ C-45 Heavy ARC bursts open, deploying its payload. 14734_ Executioner unfolds itself. 14734_ H-77 Assassin unfolds itself. 14734_ I-47 Archangel unfolds itself. 14735_ Slug penetrates Wall. 14738_ Connecting with Scanalyzer... 14740_ Scanalyzer disabled. 14758_ Spectral Analyzer destroyed. 14758_ Critical hit (Blast). 14758_ Acquired 7 matter. 14768_ ALERT: Potential suspicious activity detected, Programmers report to Research Zone 9P. 14796_ Terminal disabled. Map ----- +----------------------------------------------------+ | | | | | | | | | | | | | | | | | | | | | | | | | | | | | ?????????????????????????????########????????????? | | ????????????????????????????# ! #???????????? | | ????????????????????????????# #???????????? | | ????????????????????????????# * #???????????? | | ????????????????????????????# == #???????????? | | ????????????????????????????# =! #???????????? | | ????????????????????????????# #???????????? | | ????????????????????????????# #???????????? | | ????????????????????????????? #???????????? | | ????????????????###???????????? ?????????????? | | ????????????????# ##########+###############T | | ????????????????# p @ K | | ?????????? "T | | ??????????????? " s | | ??????????????### p p ss | | ????????????????# ##################/######## | | ????????????????#######?????????????# p # | | ????????????????????????????????????# # | | ????????????????????????????????????# """"""" # | | ????????????????????????????????????# p""""""" # | | ????????????????????????????????????# """"""" # | | ????????????????????????????????????# # | | ????????????????????????????????????# # | | ????????????????????????????????????# """"""" # | | ????????????????????????????????????# """"""" # | | ????????????????????????????????????# """"""" # | | ????????????????????????????????????# # | | ????????????????????????????????????# = # | | ???????????????????????????################/###### | | ?????T????????????????????? ** | | ??????????????????????????+ ** | | ??????????????????????????# ** | | ??????????????????????????# | | ??????????????????????????# ##### | | ??????????????????????????# # | | ???????????????????######## # | +----------------------------------------------------+ Best States ------------- Heat Dissipation 101 Coolant Potential 65 Energy Generation 55 Energy Capacity 1200 Matter Stores 300 Matter Capacity 300 Sight Range 24 Terrain Scan Range 20 Terrain Scan Density 210 Corruption Block 20 Armor Coverage 750 Resistance: KI 30 Resistance: TH 50 Resistance: EM 15 Core Shielding 40 Weapon Cycling 15 Phase Shifting 20 Evasion (%) 60 Recoil Reduction 4 Matter Filtering 50 Offensive Hacking 20 Defensive Hacking 20 Item Schematics ----------------- Combat Drone Bay | -7/Data Miner | Free Lgt. Regenerative Plating | -7/Data Miner | Free Cld. Aerolev Unit | -7/Data Miner | Free Gravity Neutralizer | -7/Data Miner | Free Cld. Plasma Cannon | -7/Data Miner | Free Thunder Leg | -7/Data Miner | Free Imp. Kinecellerator | -7/Data Miner | Free Mass Driver | -7/Data Miner | Free Imp. Focal Shield | -7/Data Miner | Free Enh. Optical Array | -7/Data Miner | Free Adv. EMP Blaster | -6/Factory | Scanalyzed Assault Drone Bay | -5/Zhirov | Free Exp. Heat Sink | -5/Zhirov | Free Exp. Optical Array | -5/Zhirov | Free Imp. Arc Thrower | -5/Zhirov | Free Prc. Matter Filter | -4/Factory | Scanalyzed Lyr. Heavy Armor Plating | -4/Factory | Scanalyzed Hvy. Linear Accelerator | -4/Factory | Hacked Robot Schematics ------------------ X-57 Shotgunner | -7/Data Miner | Free M-28 Smith | -7/Data Miner | Free R-10 Processor | -7/Data Miner | Free E-15 Imp | -7/Data Miner | Free Y-54 Guardian | -7/Data Miner | Free Y-64 Sentinel | -7/Data Miner | Free S-27 Virus | -7/Data Miner | Free Fabricated ------------ Nothing Repaired ---------- Med. Armor Plating | 17% | -8/Materials Centrium Medium Armor Plating | 47% | -4/Factory Centrium Heavy Treads | 59% | -4/Factory Studied --------- Wheel | -6/Factory | Hacked Arm. Huge Wheel | -6/Factory | Hacked Hpw. Shock Rifle | -6/Factory | Hacked KE Penetrator | -4/Factory | Hacked Wave Gun | -4/Factory | Hacked Arm. Wheel | -4/Factory | Hacked Hvy. Siege Treads | -3/Research | Hacked Alien Tech Used ----------------- Integrated Dissipator Transdimensional Reconstructor Achievements -------------- Boltbath Follow The Leader Freedom! Killing Spree Sniper Challenges ------------ None Game ------ Seed ChaosLobotomyInitializer Manual? 0 Play Time 02:49:12 Cumulative 201.9 hours Start 2026.07.29 @ 11:59:26 End 2026.07.31 @ 13:25:54 Sessions 15 Manual Loads 0 Difficulty Rogue Special Mode None Game No. 115 Rogue 115 Adventurer 0 Explorer 0 Win Type - Total 4 Types 4/0/0/0/0/0/0/0/0/0 Lore% 74 Gallery% 64 Achievement% 56 Wizard Run 0 Options --------- Layout 1 ASCII 0 Keyboard 0 Movement Numpad Keybinds 0 Fullscreen 1 Font 24/Smallcaps Map View 50x35 Zoom Use 0% Tactical HUD 1 Map Filters NONE Filters NONE Steam 1 RUN: ea1fa8f2-78e9-4aa7-9829-94c2174cc4ee